Cogmind - Beta 14 @@@ ROGUE MODE // 2024.08.08 @ 17:44:16 Player: Wesmed Result: Self-destructed Performance ------------- Evolutions (1) 500 Regions Visited (2) 400 Robots Destroyed (3) 15 Value Destroyed (30) 30 Prototype IDs (0) 0 Alien Tech Used (0) 0 Bonus (0) 0 TOTAL SCORE: 945 Bonus ------- None Cogmind --------- Core Integrity 309/400 Matter 22/300 Energy 87/125 System Corruption 0% Temperature Cool (18) Movement Flying (200) Ox2 Location -9/Materials Parts ------- > --- POWER (1) -------- Light Ion Engine > --- PROPULSION (4) --- Flight Unit > --- UTILITY (2) ------ ECM Suite > --- WEAPON (2) ------- EM Pulse Cannon > --- INVENTORY (5) ---- Ion Engine Small Storage Unit Assault Rifle Light Assault Rifle Peak State ------------ > --- POWER ------------ Light Ion Engine > --- PROPULSION ------- Aluminum Leg Aluminum Leg > --- UTILITY ---------- Small Storage Unit Huge Storage Unit > --- WEAPON ----------- Assault Rifle Light Assault Rifle > --- INVENTORY -------- Ion Engine [Rating: 7] Favorites ----------- Power Light Ion Engine Engine Light Ion Engine Propulsion Flight Unit Leg Aluminum Leg Flight Unit Flight Unit Utility Small Storage Unit Device ECM Suite Storage Small Storage Unit Weapon Assault Rifle Energy Cannon EM Pulse Cannon Ballistic Gun Assault Rifle Build | -11 -10 -9 ------- Run | Yrd Mat Mat Slots Evolved 2 | . . 2 Power . | . . . Propulsion 2 | . . 2 Utility . | . . . Weapon . | . . . Parts Attached 11 | 6 4 1 Power 1 | 1 . . Engine 1 | 1 . . Core . | . . . Reactor . | . . . Propulsion 4 | 2 2 . Treads . | . . . Leg 2 | 2 . . Wheel . | . . . Hover . | . . . Flight 2 | . 2 . Utility 3 | 1 2 . Device 1 | . 1 . Storage 2 | 1 1 . Processor . | . . . Hackware . | . . . Protection . | . . . Artifact . | . . . Weapon 3 | 2 . 1 Energy Gun . | . . . Energy Cannon 1 | . . 1 Ballistic Gun 2 | 2 . . Ballistic Cannon . | . . . Launcher . | . . . Special Weapon . | . . . Impact Weapon . | . . . Slashing Weapon . | . . . Piercing Weapon . | . . . Special Melee Weapon . | . . . Unidentified Prototypes . | . . . Parts Lost 1 | . 1 . Power . | . . . Propulsion 1 | . 1 . Utility . | . . . Weapon . | . . . Highest Loss Streak 1 | . 1 . To Critical Strikes . | . . . Average Slot Usage (%) 75 | . 79 51 Engine 13 | . 14 11 Leg 10 | . 11 . Flight 15 | . 15 11 Device 1 | . . 11 Storage 6 | . 7 . Ballistic Gun 26 | . 28 14 Peak Build Rating 7 | 6 7 7 Average Rating 5 | 4 5 5 On Entrance 3 | . 6 5 Naked Turns . | . . . Heaviest Build 91 | 11 91 11 Greatest Support 20 | 20 20 4 Greatest Overweight (x) 4 | . 4 2 Average Overweight (x) . | . . 1 Largest Inventory Capacity 25 | 8 25 5 Average Capacity 9 | 6 9 5 Most Carried 4 | 1 2 4 Average Carried 1 | . 1 2 Final Capacity 8 | 8 5 5 Final Carried 4 | 1 2 4 Class Distribution -------------------- 100% | Mutant Dominant Class ---------------- Mutant | -10/Materials Mutant | -9/Materials Resources | -11 -10 -9 ----------- Run | Yrd Mat Mat Matter Collected 71 | 31 40 . Remotely . | . . . Salvage Created 40 | . 40 . Parts 5 | . 5 . Haulers Intercepted . | . . . Recyclers Shooed . | . . . Parts Field Recycled . | . . . Retrieved Matter . | . . . Parts Self-Destructed . | . . . Prevented . | . . . Kills | -11 -10 -9 ------- Run | Yrd Mat Mat Combat Hostiles Destroyed 3 | . 3 . Guns 3 | . 3 . Classes Destroyed 1 | . 1 . Swarmer 3 | . 3 . Best Kill Streak 2 | . 2 . Combat Bots Only 2 | . 2 . Max Kills in Single Turn 1 | . 1 . Gunslinging . | . . . Exploded . | . . . Melee . | . . . Uniques/NPCs Destroyed . | . . . Combat | -11 -10 -9 -------- Run | Yrd Mat Mat Hostile Shots Fired 46 | . 30 16 Missed 17 | . 12 5 Damage Taken 323 | . 158 165 Core 127 | . 36 91 Absorbed by Shields . | . . . Core Remaining (%) 92 | 100 85 . Volleys Fired 13 | . 11 2 Largest 2 | . 2 1 Hottest 63 | . 40 63 Shots Fired 24 | . 22 2 Gun 22 | . 22 . Cannon 2 | . . 2 Launcher . | . . . Special . | . . . Kinetic 22 | . 22 . Thermal . | . . . Explosive . | . . . Electromagnetic 2 | . . 2 Robot Hit Streak 3 | . 3 3 Robot Miss Streak 4 | . 4 . Penetration Max . | . . . Secondary Targets . | . . . Shots Hit Robots 13 | . 11 2 Core Hits 5 | . 5 . Critical Kills . | . . . Critical Parts Destroyed . | . . . Critical Strikes . | . . . Melee Attacks . | . . . Impact . | . . . Slashing . | . . . Piercing . | . . . Sneak Attacks . | . . . Combat Hostiles . | . . . Follow-up Attacks . | . . . Damage Inflicted 138 | . 97 41 Guns 97 | . 97 . Cannons 41 | . . 41 Explosions . | . . . Melee . | . . . Ramming . | . . . Kinetic 97 | . 97 . Thermal . | . . . Explosive . | . . . Electromagnetic 41 | . . 41 Impact . | . . . Slashing . | . . . Piercing . | . . . Highest Corruption . | . . . Average Corruption . | . . . Corruption Purged . | . . . Corruption Blocked . | . . . Overload Shots . | . . . Overflow Damage . | . . . Projectiles . | . . . Explosions . | . . . Melee . | . . . Knockbacks . | . . . Impact . | . . . Kinetic . | . . . Secondary . | . . . Self-Inflicted Damage . | . . . Shots . | . . . Rammed . | . . . Targets Rammed . | . . . Kicked . | . . . Crushed . | . . . Highest Temperature 27 | . . 27 Average Temperature 12 | . . 12 Received Heat Transfer 108 | . 36 72 Siege Activations . | . . . Robots Corrupted . | . . . Combat Hostiles . | . . . Parts Fried . | . . . Impact Corruptions . | . . . Robots Melted . | . . . Combat Hostiles . | . . . Parts Melted . | . . . Heat Transferred . | . . . Parts Sabotaged . | . . . Parts Stolen . | . . . Parts Stripped . | . . . Power Chain Reactions . | . . . Alert | -11 -10 -9 ------- Run | Yrd Mat Mat Peak Influence 280 | . 280 88 Initial 73 | . . 73 Average 131 | . 148 86 Maximum Alert Level 1 | . 1 . Low Security (%) 84 | 100 80 100 Level 1 15 | . 19 . Level 2 . | . . . Level 3 . | . . . Level 4 . | . . . Level 5 . | . . . High Security . | . . . Max Security . | . . . Squads Dispatched 3 | . 3 . Investigation 1 | . 1 . Extermination . | . . . Reinforcement 2 | . 2 . Assault . | . . . Garrison . | . . . Intercept . | . . . Searches Triggered . | . . . Construction Impeded . | . . . Haulers Reinforced . | . . . Active Scanning Responses . | . . . Cargo Convoy Interrupts . | . . . Stealth | -11 -10 -9 --------- Run | Yrd Mat Mat Distress Signals 2 | . 2 . Communications Jammed . | . . . Distress Signals . | . . . Times Spotted 28 | . 27 1 Peak Tracking Total 8 | . 8 1 Tactical Retreats 6 | . 6 . Traps | -11 -10 -9 ------- Run | Yrd Mat Mat Traps Triggered . | . . . Indirectly . | . . . Trap Hack Attempts . | . . . Triggered . | . . . Disarmed . | . . . Reprogrammed . | . . . Reused . | . . . Traps Extracted . | . . . Installed . | . . . Triggered . | . . . Machines | -11 -10 -9 ---------- Run | Yrd Mat Mat Machines Disabled . | . . . Max in Single Turn . | . . . Machines Repaired . | . . . Machines Dismantled . | . . . Machines Sabotaged . | . . . Overloaded Fab Kills . | . . . Hacking | -11 -10 -9 --------- Run | Yrd Mat Mat Machines Accessed 2 | . 2 . Terminals . | . . . Fabricators . | . . . Repair Stations . | . . . Recycling Units 2 | . 2 . Scanalyzers . | . . . Garrison Access . | . . . Total Hacks 2 | . 2 . Successful 2 | . 2 . Failed . | . . . Catastrophic . | . . . Database Lockouts . | . . . Manual 2 | . 2 . Terminals . | . . . Fabricators . | . . . Repair Stations . | . . . Recycling Units 2 | . 2 . Scanalyzers . | . . . Garrison Access . | . . . Terminal Hacks . | . . . Fabricator Hacks . | . . . Repair Station Hacks . | . . . Recycling Unit Hacks . | . . . Scanalyzer . | . . . Garrison Access Hacks . | . . . Unauthorized Hacks 2 | . 2 . Terminals . | . . . Fabricators . | . . . Repair Stations . | . . . Recycling Units 2 | . 2 . Reject 1 | . 1 . Tunnel 1 | . 1 . Scanalyzers . | . . . Garrison Access . | . . . Data Cores Recovered . | . . . Used . | . . . Hacking Detections . | . . . Full Trace Events . | . . . Feedback Events . | . . . Feedback Blocked . | . . . Robot Schematics Acquired . | . . . Robots Built . | . . . Authchips . | . . . Time . | . . . Total Robot Build Rating . | . . . Part Schematics Acquired . | . . . Parts Built . | . . . Authchips . | . . . Time . | . . . Total Part Build Rating . | . . . Parts Repaired . | . . . Time . | . . . Parts Recycled . | . . . Recycled Matter . | . . . Retrieved Matter . | . . . Retrieved Components . | . . . Parts Scanalyzed . | . . . Part Schematics Acquired . | . . . Parts Damaged . | . . . Bothacking | -11 -10 -9 ------------ Run | Yrd Mat Mat Used RIF Installer . | . . . Robots Hacked . | . . . Non-combat . | . . . Combat . | . . . Robot Hacks Applied . | . . . Relay Couplers Released . | . . . Fabnet Peak Effective % . | . . . Robots Rewired . | . . . Allies Hacked . | . . . Hacks Repelled . | . . . Allies | -11 -10 -9 -------- Run | Yrd Mat Mat Total Allies . | . . . Largest Group . | . . . Highest-Rated Group . | . . . Highest-Rated Ally . | . . . Total Orders . | . . . Ally Attacks . | . . . Total Damage . | . . . Kills . | . . . Allies Corrupted . | . . . Allies Melted . | . . . Intel | -11 -10 -9 ------- Run | Yrd Mat Mat Robot Analysis Total . | . . . Derelict Logs Recovered . | . . . Drone Launches . | . . . Drone Recoveries . | . . . Exploration | -11 -10 -9 ------------- Run | Yrd Mat Mat Turns Passed 715 | 45 575 95 Spaces Moved 481 | 33 389 59 Core 5 | 5 . . Treads . | . . . Legs 127 | 28 99 . Wheels . | . . . Hover . | . . . Flight 349 | . 290 59 Fastest Speed 37 | 50 37 120 Average Speed 89 | 109 80 134 Slowest Speed 400 | 120 400 200 Overloaded Moves . | . . . Propulsion Burnouts . | . . . Robots Hopped 5 | . 5 . Cave-ins Triggered . | . . . Exploration Rate (%) 21 | 3 53 7 Regions Visited 2 Branch Regions . Pre-discovered Areas 1 | . 1 . Known Exits Taken . | . . . Unknown Exits Taken 2 | 1 1 . Scrap Searched . | . . . Spaces Dug . | . . . Terrain Destroyed . | . . . Melee . | . . . Projectile . | . . . AOE . | . . . Terrain Rammed . | . . . Walls Destroyed . | . . . Machines Disabled . | . . . Actions | -11 -10 -9 --------- Run | Yrd Mat Mat Total 737 | 39 626 72 Wait 231 | . 223 8 Move 469 | 32 378 59 Hop 5 | . 5 . Pick Up 2 | 1 1 . Fast Attach 11 | 6 4 1 Attach . | . . . Detach 2 | . . 2 Swap . | . . . Drop 4 | . 4 . Fire 13 | . 11 2 Melee . | . . . Ram . | . . . Kick . | . . . Crush . | . . . Escape Stasis . | . . . Rewire . | . . . Trap . | . . . Miscellaneous . | . . . Route ------- -11/Scrapyard -10/Materials -9/Materials History --------- Turn | Location | Event 6 | -11/Scrapyard | Discovered new exit (range 15) 46 | -11/Scrapyard | Entered Materials 312 | -10/Materials | Build established: Mutant 607 | -10/Materials | Discovered new exit (range 15) 621 | -10/Materials | Entered another Materials area 621 | -9/Materials | Evolved 2 slots: Propulsion x2 716 | -9/Materials | Self-destructed Last Messages --------------- reinforcements to Terminal M001. 00428_ O-16 Technician: "IFF HANDSHAKE FAILED. SECURING TERMINAL." 00434_ ALERT: Hostiles spotted, dispatching reinforcements to Terminal M006. 00599_ O-16 Technician: "IFF HANDSHAKE FAILED. SECURING TERMINAL." 00604_ Acquired ECM Suite. 00607_ EXIT=FOUND 00613_ Connecting with Recycling Unit... >>Force(Tunnel) DISCOVERED[-4/Archives] 00613_ ALERT: Suspicious activity at Recycling Unit M001. Dispatching Investigation squad. 00619_ Flight Unit destroyed. PARAMETERS=PROPULSION+2 LOCATION=UNKNOWN GOAL=ESCAPE 00688_ Acquired EM Pulse Cannon. 00702_ Critical hit (Burn: +37). Map ----- +----------------------------------------------------+ | ?????????????????????# # #??? | | ?????????????????????# # #??? | | ?????????????????????# # #??? | | ?????????????????????########## #??? | | ???????????????????????# # #??? | | ???????????????????????#* """ + #??? | | ???????????????????????# """ # #??? | | ???????????????????????# """ # #??? | | ???????????????????????# # #??? | | ???????????????????????# # #??? | | ???????????????????????######## #??? | | ??????????????????????????????# #??? | | ???????????????????########???# #??? | | ???????????????????#]]!!]]#???# #??? | | ???????????????????#]]!!] #???# #??? | | ???????????????????# #??## ##?? | | ???????????????????#### #### #?? | | ??????????????????????# #?? | | ??????????????????????# #?? | | ??????????????????????# #?? | | ??????????????????????# Y#### #?? | | ??????????????????????# #??###+###?? | | ??????????????????????# #??????????? | | ??????????????????????# #??????????? | | ??????????????????????# #??????????? | | ??????????????????????# @#??????????? | | ??????????????????????# #??????????? | | ??????????????????????# #??????????? | | ??????????????????????# #??????????? | | ??????????????????????# #??????????? | | ??????????????????????# #??????????? | | ?????????????????????? #??????????? | | ?????????????????????? #??????????? | | ????????????????????? #??????????? | | ?????????????????????## #??????????? | | ??????????????????????# #??????????? | | ??????????????????????# ???????????? | | ??????????????????????# ???????????? | | ??????????????????????# ???????????? | | ??????????????????????# ???????????? | | ???????????????????????s ???????????? | | ?????????????????????????????????????? | | ?????????????????????????????????????? | | ?????????????????????????????????????? | | ?????????????????????????????????????? | | ?????????????????????????????????????? | | ?????????????????????????????????????? | | ?????????????????????????????????????? | | ?????????????????????????????????????? | | ?????????????????????????????????????? | +----------------------------------------------------+ Best States ------------- Heat Dissipation 28 Energy Generation 10 Energy Capacity 125 Matter Stores 91 Matter Capacity 300 Sight Range 16 Terrain Scan Density 10 ECM Strength 1 Evasion (%) 62 Item Schematics ----------------- None Robot Schematics ------------------ None Fabricated ------------ Nothing Alien Tech Used ----------------- None Achievements -------------- None Challenges ------------ None Game ------ Seed MediumSignalThruster Manual? 0 Play Time 00:08:09 Cumulative 31.1 hours Start 2024.08.08 @ 17:36:51 End 2024.08.08 @ 17:44:16 Sessions 1 Manual Loads 0 Difficulty Rogue Special Mode None Game No. 48 Rogue 40 Adventurer 8 Explorer 0 Win Type - Total 0 Types 0/0/0/0/0/0/0/0/0 Lore% 20 Gallery% 35 Achievement% 28 Wizard Run 0 Options --------- Layout 1 ASCII 0 Keyboard 0 Movement Arrows Keybinds 0 Fullscreen 1 Font 20/SmallcapsGlow Map View 54x42 Zoom Use 0% Tactical HUD 1 Map Filters NONE Filters NONE Steam 1 RUN: 7016dd53-6a9a-4a1b-82db-5e6b7d5720a5